[Event "Early-Titled-Tuesday-Blitz-March-26-2024"]
[Site "Chess.com"]
[Date "2024.03.26"]
[Round "9"]
[White "sokidze"]
[Black "Orest_Vovk"]
[Result "1-0"]
[WhiteElo "2795"]
[BlackElo "2589"]
[TimeControl "180+1"]
[EndTime "9:42:36 PDT"]
[Termination "sokidze won by resignation"]

1. d4 {[%clk 0:03:00.9]} 1... h6 {[%clk 0:02:53.1]} 2. e4 {[%clk 0:02:59.7]}
2... g5 {[%clk 0:02:53.2]} 3. Ne2 {[%clk 0:02:58.7]} 3... Bg7 {[%clk 0:02:51.4]}
4. Ng3 {[%clk 0:02:54.6]} 4... c5 {[%clk 0:02:48.7]} 5. Nf5 {[%clk 0:02:24.7]}
5... Bxd4 {[%clk 0:02:42.3]} 6. Nxd4 {[%clk 0:02:24.8]} 6... cxd4 {[%clk
0:02:42.3]} 7. Qxd4 {[%clk 0:02:25.7]} 7... Nf6 {[%clk 0:02:42.4]} 8. Nc3 {[%clk
0:02:25.6]} 8... Nc6 {[%clk 0:02:42.3]} 9. Qd1 {[%clk 0:02:24.4]} 9... d6 {[%clk
0:02:39.8]} 10. Be2 {[%clk 0:02:21.4]} 10... Be6 {[%clk 0:02:26.1]} 11. O-O
{[%clk 0:02:19.6]} 11... Ne5 {[%clk 0:02:20.2]} 12. b3 {[%clk 0:02:12.3]} 12...
Rc8 {[%clk 0:02:14.2]} 13. Bb2 {[%clk 0:02:12.3]} 13... h5 {[%clk 0:02:05.3]}
14. Qd2 {[%clk 0:02:08.4]} 14... g4 {[%clk 0:02:00.2]} 15. Kh1 {[%clk
0:02:03.1]} 15... h4 {[%clk 0:01:57.9]} 16. f4 {[%clk 0:02:02.3]} 16... gxf3
{[%clk 0:01:53.5]} 17. gxf3 {[%clk 0:02:02.5]} 17... Qb6 {[%clk 0:01:34.6]} 18.
f4 {[%clk 0:01:49.3]} 18... Neg4 {[%clk 0:01:18.5]} 19. f5 {[%clk 0:01:47.5]}
19... Rxc3 {[%clk 0:00:43.4]} 20. Qxc3 {[%clk 0:01:35]} 20... Nf2+ {[%clk
0:00:10.1]} 21. Rxf2 {[%clk 0:01:34.2]} 21... Qxf2 {[%clk 0:00:10.8]} 22. fxe6
{[%clk 0:01:34.5]} 22... fxe6 {[%clk 0:00:09.1]} 23. Qf3 {[%clk 0:00:45]} 23...
Qc5 {[%clk 0:00:08.9]} 24. Bxf6 {[%clk 0:00:36.5]} 24... exf6 {[%clk 0:00:07.1]}
25. Qxf6 {[%clk 0:00:36.3]} 25... Rh7 {[%clk 0:00:05.8]} 26. Qxe6+ {[%clk
0:00:34.4]} 26... Re7 {[%clk 0:00:05.9]} 27. Qg8+ {[%clk 0:00:25.4]} 27... Kd7
{[%clk 0:00:06.2]} 28. Bg4+ {[%clk 0:00:26.1]} 1-0

[Event "Early-Titled-Tuesday-Blitz-March-26-2024"]
[Site "Chess.com"]
[Date "2024.03.26"]
[Round "9"]
[White "kingofthenil"]
[Black "Cobysters"]
[Result "0-1"]
[WhiteElo "2765"]
[BlackElo "2598"]
[TimeControl "180+1"]
[EndTime "9:42:39 PDT"]
[Termination "Cobysters won on time"]

1. e4 {[%clk 0:02:56.7]} 1... c5 {[%clk 0:02:59.5]} 2. d3 {[%clk 0:02:56]} 2...
Nc6 {[%clk 0:02:59.2]} 3. g3 {[%clk 0:02:56.9]} 3... g6 {[%clk 0:02:59]} 4. Bg2
{[%clk 0:02:56.3]} 4... Bg7 {[%clk 0:02:59.9]} 5. f4 {[%clk 0:02:54.7]} 5... b5
{[%clk 0:03:00]} 6. Nf3 {[%clk 0:02:55.1]} 6... e6 {[%clk 0:03:00]} 7. O-O
{[%clk 0:02:55.5]} 7... Nge7 {[%clk 0:03:00.2]} 8. Nbd2 {[%clk 0:02:52]} 8...
O-O {[%clk 0:02:59.4]} 9. a4 {[%clk 0:02:51.3]} 9... b4 {[%clk 0:02:56.8]} 10.
e5 {[%clk 0:02:51.9]} 10... f6 {[%clk 0:02:56]} 11. exf6 {[%clk 0:02:51.1]}
11... Bxf6 {[%clk 0:02:55.8]} 12. Ne4 {[%clk 0:02:52]} 12... Bg7 {[%clk
0:02:45.6]} 13. Nxc5 {[%clk 0:02:52.2]} 13... Qb6 {[%clk 0:02:44.6]} 14. Be3
{[%clk 0:02:51.6]} 14... d6 {[%clk 0:02:44.5]} 15. a5 {[%clk 0:02:44.8]} 15...
Nxa5 {[%clk 0:02:44.3]} 16. Ng5 {[%clk 0:02:18.9]} 16... Nd5 {[%clk 0:02:19.6]}
17. Bxd5 {[%clk 0:00:37.4]} 17... exd5 {[%clk 0:02:18]} 18. Rxa5 {[%clk
0:00:38.3]} 18... Qxa5 {[%clk 0:02:08.1]} 19. Qf3 {[%clk 0:00:38.3]} 19... dxc5
{[%clk 0:01:48]} 20. Qxd5+ {[%clk 0:00:37.8]} 20... Kh8 {[%clk 0:01:48.5]} 21.
Qxa8 {[%clk 0:00:32.2]} 21... Bh3 {[%clk 0:01:47.9]} 22. Qd5 {[%clk 0:00:29.6]}
22... Bxf1 {[%clk 0:01:46.5]} 23. Nf7+ {[%clk 0:00:27.9]} 23... Rxf7 {[%clk
0:01:45.4]} 24. Qxf7 {[%clk 0:00:28.8]} 24... h5 {[%clk 0:00:55.1]} 25. Kxf1
{[%clk 0:00:20.4]} 25... Qa1+ {[%clk 0:00:50.9]} 26. Kg2 {[%clk 0:00:13.5]}
26... Qxb2 {[%clk 0:00:51.2]} 27. Qxg6 {[%clk 0:00:02.3]} 27... Qxc2+ {[%clk
0:00:51]} 28. Bf2 {[%clk 0:00:02.3]} 28... Qe2 {[%clk 0:00:45.6]} 29. f5 {[%clk
0:00:02.5]} 29... Bd4 {[%clk 0:00:36.7]} 30. Qh6+ {[%clk 0:00:02.5]} 30... Kg8
{[%clk 0:00:37.1]} 31. Qg6+ {[%clk 0:00:02.2]} 31... Kf8 {[%clk 0:00:37.5]} 32.
Qd6+ {[%clk 0:00:02.7]} 32... Ke8 {[%clk 0:00:36.7]} 33. Qc6+ {[%clk 0:00:02.1]}
33... Ke7 {[%clk 0:00:36.9]} 0-1

[Event "Early-Titled-Tuesday-Blitz-March-26-2024"]
[Site "Chess.com"]
[Date "2024.03.26"]
[Round "9"]
[White "Stanbad1"]
[Black "Pelusiansky"]
[Result "1-0"]
[WhiteElo "2660"]
[BlackElo "2544"]
[TimeControl "180+1"]
[EndTime "9:42:43 PDT"]
[Termination "Stanbad1 won by checkmate"]

1. d4 {[%clk 0:03:00.9]} 1... Nf6 {[%clk 0:02:59.3]} 2. Nc3 {[%clk 0:02:58.9]}
2... d5 {[%clk 0:02:53.1]} 3. Bf4 {[%clk 0:02:58.3]} 3... c6 {[%clk 0:02:52.7]}
4. e3 {[%clk 0:02:57.2]} 4... g6 {[%clk 0:02:51]} 5. h4 {[%clk 0:02:56.5]} 5...
Nbd7 {[%clk 0:02:45.5]} 6. Bd3 {[%clk 0:02:53.3]} 6... Bg7 {[%clk 0:02:41.6]} 7.
Nf3 {[%clk 0:02:51.6]} 7... h5 {[%clk 0:02:37.4]} 8. Ne5 {[%clk 0:02:50.3]} 8...
Nxe5 {[%clk 0:02:33.3]} 9. Bxe5 {[%clk 0:02:45.9]} 9... Bg4 {[%clk 0:02:29.3]}
10. f3 {[%clk 0:02:44.7]} 10... Be6 {[%clk 0:02:29.4]} 11. Qe2 {[%clk
0:02:43.4]} 11... Qa5 {[%clk 0:02:26.8]} 12. O-O-O {[%clk 0:02:42.4]} 12... b5
{[%clk 0:02:15.7]} 13. a3 {[%clk 0:02:39]} 13... b4 {[%clk 0:02:08.2]} 14. axb4
{[%clk 0:02:37.7]} 14... Qxb4 {[%clk 0:02:08.5]} 15. Ba6 {[%clk 0:02:30.4]}
15... O-O {[%clk 0:02:02.3]} 16. Rhg1 {[%clk 0:02:18.6]} 16... Rab8 {[%clk
0:01:55.3]} 17. Bxb8 {[%clk 0:02:16.6]} 17... Rxb8 {[%clk 0:01:54.7]} 18. Bd3
{[%clk 0:02:05.7]} 18... c5 {[%clk 0:01:47.3]} 19. Bb5 {[%clk 0:01:52.8]} 19...
c4 {[%clk 0:01:27]} 20. g4 {[%clk 0:01:48.1]} 20... hxg4 {[%clk 0:01:21.8]} 21.
fxg4 {[%clk 0:01:47]} 21... Rxb5 {[%clk 0:01:15.8]} 22. Nxb5 {[%clk 0:01:45.9]}
22... Qxb5 {[%clk 0:01:16.7]} 23. c3 {[%clk 0:01:42.5]} 23... Ne4 {[%clk
0:01:14.8]} 24. h5 {[%clk 0:01:40.3]} 24... g5 {[%clk 0:01:14.3]} 25. Qc2 {[%clk
0:01:39]} 25... Qd7 {[%clk 0:01:03.9]} 26. Rdf1 {[%clk 0:01:34.7]} 26... Bxg4
{[%clk 0:01:00.1]} 27. Qh2 {[%clk 0:01:32.8]} 27... Bh6 {[%clk 0:00:47.3]} 28.
Qe5 {[%clk 0:01:18.3]} 28... f6 {[%clk 0:00:42.3]} 29. Qb8+ {[%clk 0:01:14.1]}
29... Kg7 {[%clk 0:00:42.7]} 30. Qa8 {[%clk 0:01:10]} 30... Be6 {[%clk
0:00:39.3]} 31. Qb8 {[%clk 0:00:48.7]} 31... g4 {[%clk 0:00:38.4]} 32. Rf4
{[%clk 0:00:46.4]} 32... f5 {[%clk 0:00:36.7]} 33. Qe5+ {[%clk 0:00:44.4]} 33...
Nf6 {[%clk 0:00:37.1]} 34. Rgf1 {[%clk 0:00:42.6]} 34... Bxf4 {[%clk 0:00:27]}
35. Qxf4 {[%clk 0:00:43.5]} 35... Nh7 {[%clk 0:00:25.7]} 36. Qe5+ {[%clk
0:00:38.8]} 36... Kf7 {[%clk 0:00:21.9]} 37. Qh8 {[%clk 0:00:36.1]} 37... Nf6
{[%clk 0:00:20.3]} 38. h6 {[%clk 0:00:36.6]} 38... Kg6 {[%clk 0:00:11.2]} 39.
Qg7+ {[%clk 0:00:35.5]} 39... Kh5 {[%clk 0:00:11.2]} 40. Rh1# {[%clk 0:00:36.3]}
1-0

[Event "Early-Titled-Tuesday-Blitz-March-26-2024"]
[Site "Chess.com"]
[Date "2024.03.26"]
[Round "9"]
[White "JJDAREK"]
[Black "vladgoncharov"]
[Result "0-1"]
[WhiteElo "2384"]
[BlackElo "2592"]
[TimeControl "180+1"]
[EndTime "9:42:43 PDT"]
[Termination "vladgoncharov won on time"]

1. d4 {[%clk 0:02:57.3]} 1... Nf6 {[%clk 0:02:59.2]} 2. c4 {[%clk 0:02:56.4]}
2... c5 {[%clk 0:02:59.4]} 3. d5 {[%clk 0:02:56.3]} 3... e6 {[%clk 0:02:59.8]}
4. Nc3 {[%clk 0:02:55.6]} 4... exd5 {[%clk 0:03:00]} 5. cxd5 {[%clk 0:02:56.5]}
5... d6 {[%clk 0:03:00.2]} 6. Nf3 {[%clk 0:02:55.8]} 6... g6 {[%clk 0:03:00.5]}
7. Bg5 {[%clk 0:02:54.1]} 7... h6 {[%clk 0:02:52]} 8. Bh4 {[%clk 0:02:43.9]}
8... Bg7 {[%clk 0:02:47.5]} 9. e4 {[%clk 0:02:41]} 9... g5 {[%clk 0:02:46.2]}
10. Bg3 {[%clk 0:02:40.3]} 10... Nh5 {[%clk 0:02:45.9]} 11. Bb5+ {[%clk
0:02:35.3]} 11... Kf8 {[%clk 0:02:29.7]} 12. O-O {[%clk 0:02:20.1]} 12... Nxg3
{[%clk 0:02:21.9]} 13. hxg3 {[%clk 0:02:21]} 13... a6 {[%clk 0:02:21.7]} 14. Bd3
{[%clk 0:02:15.4]} 14... b5 {[%clk 0:02:21.4]} 15. a4 {[%clk 0:02:14.3]} 15...
c4 {[%clk 0:02:10.2]} 16. Be2 {[%clk 0:02:09.8]} 16... b4 {[%clk 0:02:10.1]} 17.
Na2 {[%clk 0:02:02.1]} 17... a5 {[%clk 0:01:54.9]} 18. Bxc4 {[%clk 0:01:59.1]}
18... Bxb2 {[%clk 0:01:53]} 19. Rb1 {[%clk 0:01:35.4]} 19... Bf6 {[%clk
0:01:49.4]} 20. Re1 {[%clk 0:01:34.2]} 20... Nd7 {[%clk 0:01:48.9]} 21. Bb5
{[%clk 0:01:31.7]} 21... Nc5 {[%clk 0:01:42.5]} 22. e5 {[%clk 0:01:25.6]} 22...
dxe5 {[%clk 0:01:37.1]} 23. Nxe5 {[%clk 0:01:26.5]} 23... Kg7 {[%clk 0:01:30.8]}
24. Nc6 {[%clk 0:01:18.5]} 24... Qd6 {[%clk 0:01:27.8]} 25. Nc1 {[%clk
0:01:11.8]} 25... Bf5 {[%clk 0:01:24.7]} 26. Nb3 {[%clk 0:01:04]} 26... Bxb1
{[%clk 0:01:16.4]} 27. Qxb1 {[%clk 0:00:50.1]} 27... Qxd5 {[%clk 0:01:12]} 28.
Nxc5 {[%clk 0:00:48.8]} 28... Qxc5 {[%clk 0:01:11.5]} 29. Rc1 {[%clk 0:00:27.9]}
29... Bc3 {[%clk 0:01:10.9]} 30. Qd3 {[%clk 0:00:02.6]} 30... Rhe8 {[%clk
0:01:05.1]} 31. Qf3 {[%clk 0:00:02.1]} 31... Re1+ {[%clk 0:00:56.8]} 32. Rxe1
{[%clk 0:00:01.9]} 32... Bxe1 {[%clk 0:00:57.5]} 33. Kf1 {[%clk 0:00:02.5]}
33... Bc3 {[%clk 0:00:45.1]} 34. g4 {[%clk 0:00:02.8]} 34... Re8 {[%clk
0:00:43.6]} 35. Kg1 {[%clk 0:00:03.3]} 35... Re1+ {[%clk 0:00:42.5]} 36. Kh2
{[%clk 0:00:03.6]} 36... Qd6+ {[%clk 0:00:42.4]} 37. g3 {[%clk 0:00:03.7]} 37...
Qd1 {[%clk 0:00:40.7]} 0-1

[Event "Early-Titled-Tuesday-Blitz-March-26-2024"]
[Site "Chess.com"]
[Date "2024.03.26"]
[Round "9"]
[White "DrVelja"]
[Black "Coach_Istvanovszki"]
[Result "1-0"]
[WhiteElo "2992"]
[BlackElo "2571"]
[TimeControl "180+1"]
[EndTime "9:42:46 PDT"]
[Termination "DrVelja won by resignation"]

1. Nf3 {[%clk 0:03:00.9]} 1... g6 {[%clk 0:02:59.4]} 2. e4 {[%clk 0:03:00.6]}
2... c5 {[%clk 0:02:58.8]} 3. c3 {[%clk 0:02:58.7]} 3... d6 {[%clk 0:02:54.8]}
4. d4 {[%clk 0:02:58.5]} 4... Nf6 {[%clk 0:02:55.5]} 5. dxc5 {[%clk 0:02:56.3]}
5... Nc6 {[%clk 0:02:55.6]} 6. cxd6 {[%clk 0:02:54.5]} 6... Nxe4 {[%clk
0:02:55.8]} 7. Nbd2 {[%clk 0:02:40.2]} 7... Nxd6 {[%clk 0:02:54.9]} 8. Nc4
{[%clk 0:02:40.6]} 8... Nxc4 {[%clk 0:02:47.7]} 9. Qxd8+ {[%clk 0:02:41.5]} 9...
Nxd8 {[%clk 0:02:48.2]} 10. Bxc4 {[%clk 0:02:42.4]} 10... Bg7 {[%clk 0:02:41.1]}
11. Be3 {[%clk 0:02:39.5]} 11... O-O {[%clk 0:02:40]} 12. Rd1 {[%clk 0:02:28.8]}
12... Nc6 {[%clk 0:02:23.3]} 13. Bd5 {[%clk 0:02:27.3]} 13... Rd8 {[%clk
0:02:07.8]} 14. O-O {[%clk 0:02:25]} 14... Bg4 {[%clk 0:02:03.7]} 15. h3 {[%clk
0:02:24.1]} 15... Bf5 {[%clk 0:01:54.9]} 16. g4 {[%clk 0:02:15.7]} 16... Bd7
{[%clk 0:01:45.5]} 17. Ng5 {[%clk 0:02:15.7]} 17... e6 {[%clk 0:01:45.3]} 18.
Bg2 {[%clk 0:02:16.2]} 18... Be8 {[%clk 0:01:42.8]} 19. Ne4 {[%clk 0:02:16.7]}
19... Be5 {[%clk 0:01:29.8]} 20. f4 {[%clk 0:02:15.1]} 20... Bc7 {[%clk
0:01:27.8]} 21. Nf6+ {[%clk 0:02:12.8]} 21... Kg7 {[%clk 0:01:28.2]} 22. Nxe8+
{[%clk 0:02:11.7]} 22... Rxe8 {[%clk 0:01:29.1]} 23. Rd7 {[%clk 0:02:12.3]}
23... Rac8 {[%clk 0:01:27.9]} 24. Rfd1 {[%clk 0:02:08.3]} 24... Red8 {[%clk
0:01:18.7]} 25. Bxc6 {[%clk 0:01:52.8]} 25... bxc6 {[%clk 0:01:18.4]} 26. Rxd8
{[%clk 0:01:53.2]} 26... Bxd8 {[%clk 0:01:15.5]} 27. Bxa7 {[%clk 0:01:53.3]}
27... Ra8 {[%clk 0:01:16.2]} 28. Bd4+ {[%clk 0:01:30.3]} 28... Bf6 {[%clk
0:01:16.1]} 29. a3 {[%clk 0:01:30.4]} 29... Ra5 {[%clk 0:00:57]} 30. Kf2 {[%clk
0:01:24.4]} 30... c5 {[%clk 0:00:54.9]} 31. Bxf6+ {[%clk 0:01:25.1]} 31... Kxf6
{[%clk 0:00:55.8]} 32. Ke3 {[%clk 0:01:25.7]} 32... c4 {[%clk 0:00:54.9]} 33.
Ra1 {[%clk 0:01:06.4]} 33... e5 {[%clk 0:00:53]} 34. a4 {[%clk 0:01:04.4]} 34...
Ke6 {[%clk 0:00:46.5]} 35. g5 {[%clk 0:00:53.7]} 35... f5 {[%clk 0:00:44.7]} 36.
gxf6 {[%clk 0:00:51.1]} 36... Kxf6 {[%clk 0:00:45.6]} 37. Ke4 {[%clk 0:00:49.2]}
37... exf4 {[%clk 0:00:38.2]} 38. Kxf4 {[%clk 0:00:50.1]} 38... g5+ {[%clk
0:00:38.7]} 39. Ke4 {[%clk 0:00:50.6]} 39... h5 {[%clk 0:00:39]} 40. Kd4 {[%clk
0:00:51.2]} 40... g4 {[%clk 0:00:38.7]} 41. hxg4 {[%clk 0:00:52.1]} 41... hxg4
{[%clk 0:00:39.6]} 42. Kxc4 {[%clk 0:00:52.9]} 42... g3 {[%clk 0:00:40.2]} 43.
b4 {[%clk 0:00:52.4]} 43... Rg5 {[%clk 0:00:40.2]} 44. a5 {[%clk 0:00:51.2]}
44... g2 {[%clk 0:00:40.6]} 45. Rg1 {[%clk 0:00:49.2]} 45... Ke6 {[%clk
0:00:38.2]} 46. a6 {[%clk 0:00:49.2]} 46... Kd6 {[%clk 0:00:34.6]} 47. a7 {[%clk
0:00:49.7]} 47... Rg4+ {[%clk 0:00:31.7]} 48. Kb3 {[%clk 0:00:49.5]} 48... Rg8
{[%clk 0:00:31.2]} 49. Rxg2 {[%clk 0:00:50.1]} 1-0

[Event "Early-Titled-Tuesday-Blitz-March-26-2024"]
[Site "Chess.com"]
[Date "2024.03.26"]
[Round "9"]
[White "Let_it_be_1"]
[Black "jaskol95"]
[Result "0-1"]
[WhiteElo "2641"]
[BlackElo "2488"]
[TimeControl "180+1"]
[EndTime "9:42:49 PDT"]
[Termination "jaskol95 won by resignation"]

1. e4 {[%clk 0:03:00.9]} 1... e6 {[%clk 0:02:59.4]} 2. d4 {[%clk 0:03:00.5]}
2... d5 {[%clk 0:03:00.1]} 3. Nd2 {[%clk 0:03:01]} 3... Nf6 {[%clk 0:03:00]} 4.
e5 {[%clk 0:03:01]} 4... Nfd7 {[%clk 0:03:00.3]} 5. Bd3 {[%clk 0:03:01.3]} 5...
c5 {[%clk 0:03:01]} 6. c3 {[%clk 0:03:01.9]} 6... Nc6 {[%clk 0:03:01.8]} 7. Ne2
{[%clk 0:03:01.9]} 7... cxd4 {[%clk 0:03:02.6]} 8. cxd4 {[%clk 0:03:02]} 8... f6
{[%clk 0:03:03.3]} 9. exf6 {[%clk 0:03:02.4]} 9... Nxf6 {[%clk 0:03:04.2]} 10.
Nf3 {[%clk 0:03:02.6]} 10... Bd6 {[%clk 0:03:04.2]} 11. O-O {[%clk 0:03:02.7]}
11... O-O {[%clk 0:03:00.6]} 12. Bf4 {[%clk 0:03:02.7]} 12... Bxf4 {[%clk
0:03:00.1]} 13. Nxf4 {[%clk 0:03:03]} 13... Ne4 {[%clk 0:02:48.2]} 14. Nh5
{[%clk 0:03:02.6]} 14... Ng5 {[%clk 0:02:41.8]} 15. Ne5 {[%clk 0:02:55]} 15...
Nxd4 {[%clk 0:01:58.7]} 16. h4 {[%clk 0:02:09.4]} 16... Ne4 {[%clk 0:01:46.8]}
17. Qg4 {[%clk 0:01:59.8]} 17... Nf5 {[%clk 0:01:40.2]} 18. Bxe4 {[%clk
0:01:35.6]} 18... dxe4 {[%clk 0:01:39.2]} 19. g3 {[%clk 0:01:36]} 19... Qd4
{[%clk 0:01:22]} 20. Qf4 {[%clk 0:01:23]} 20... Nxh4 {[%clk 0:00:55.3]} 21. Qg5
{[%clk 0:01:02.6]} 21... Qxe5 {[%clk 0:00:50.7]} 22. Qxh4 {[%clk 0:01:01.4]}
22... Bd7 {[%clk 0:00:47]} 23. Rad1 {[%clk 0:00:45.5]} 23... Bc6 {[%clk
0:00:46.1]} 24. Qh3 {[%clk 0:00:30.7]} 24... e3 {[%clk 0:00:23.6]} 25. f4 {[%clk
0:00:29.6]} 25... Qe4 {[%clk 0:00:18.5]} 26. Rfe1 {[%clk 0:00:24.6]} 26... g6
{[%clk 0:00:14.8]} 27. Rd4 {[%clk 0:00:14.4]} 27... Qxd4 {[%clk 0:00:10]} 28.
Qxe6+ {[%clk 0:00:14.5]} 28... Kh8 {[%clk 0:00:10.7]} 29. Rxe3 {[%clk 0:00:11]}
29... Rae8 {[%clk 0:00:10.4]} 0-1

[Event "Early-Titled-Tuesday-Blitz-March-26-2024"]
[Site "Chess.com"]
[Date "2024.03.26"]
[Round "9"]
[White "RebelJohnny"]
[Black "Mikhail_Bryakin"]
[Result "0-1"]
[WhiteElo "2582"]
[BlackElo "2858"]
[TimeControl "180+1"]
[EndTime "9:42:52 PDT"]
[Termination "Mikhail_Bryakin won on time"]

1. e4 {[%clk 0:03:00.9]} 1... d5 {[%clk 0:02:54.4]} 2. exd5 {[%clk 0:02:59.1]}
2... Nf6 {[%clk 0:02:54.1]} 3. d4 {[%clk 0:02:57.1]} 3... Bg4 {[%clk 0:02:53.5]}
4. Bb5+ {[%clk 0:02:33.4]} 4... Nbd7 {[%clk 0:02:39.2]} 5. Be2 {[%clk
0:02:33.1]} 5... Bxe2 {[%clk 0:02:37.4]} 6. Qxe2 {[%clk 0:02:34]} 6... Nb6
{[%clk 0:02:36.6]} 7. c4 {[%clk 0:02:27.3]} 7... e6 {[%clk 0:02:32.1]} 8. dxe6
{[%clk 0:02:19.5]} 8... Qxd4 {[%clk 0:02:30.2]} 9. Nf3 {[%clk 0:02:17.9]} 9...
Bb4+ {[%clk 0:02:19.7]} 10. Nbd2 {[%clk 0:01:56.9]} 10... Qxc4 {[%clk
0:02:18.8]} 11. exf7+ {[%clk 0:01:53]} 11... Kf8 {[%clk 0:02:19.4]} 12. Qxc4
{[%clk 0:01:44.9]} 12... Nxc4 {[%clk 0:02:20.3]} 13. O-O {[%clk 0:01:43.6]}
13... Nxd2 {[%clk 0:02:20.5]} 14. Bxd2 {[%clk 0:01:43.6]} 14... Bxd2 {[%clk
0:02:21.1]} 15. Nxd2 {[%clk 0:01:44.5]} 15... Kxf7 {[%clk 0:02:21.7]} 16. Rad1
{[%clk 0:01:41]} 16... Rhe8 {[%clk 0:02:17.3]} 17. Rfe1 {[%clk 0:01:30.8]} 17...
Rxe1+ {[%clk 0:02:15.9]} 18. Rxe1 {[%clk 0:01:31.7]} 18... Rd8 {[%clk
0:02:16.4]} 19. Nf3 {[%clk 0:01:31.1]} 19... Rd5 {[%clk 0:02:09.6]} 20. Kf1
{[%clk 0:01:28.8]} 20... c5 {[%clk 0:02:07.6]} 21. Ke2 {[%clk 0:01:27.8]} 21...
Ke7 {[%clk 0:02:02.2]} 22. h3 {[%clk 0:01:13.6]} 22... b5 {[%clk 0:02:00.6]} 23.
g4 {[%clk 0:01:13.1]} 23... Kd6 {[%clk 0:01:55.3]} 24. Nh4 {[%clk 0:00:58.3]}
24... Re5+ {[%clk 0:01:51]} 25. Kd1 {[%clk 0:00:44]} 25... Rxe1+ {[%clk
0:01:51.9]} 26. Kxe1 {[%clk 0:00:44.9]} 26... Ke5 {[%clk 0:01:51.1]} 27. Ke2
{[%clk 0:00:41.8]} 27... g6 {[%clk 0:01:49.6]} 28. Nf3+ {[%clk 0:00:26.1]} 28...
Kf4 {[%clk 0:01:49.8]} 29. Ne1 {[%clk 0:00:25]} 29... c4 {[%clk 0:01:44.7]} 30.
Ng2+ {[%clk 0:00:21.7]} 30... Ke4 {[%clk 0:01:45.3]} 31. f3+ {[%clk 0:00:20.7]}
31... Ke5 {[%clk 0:01:46]} 32. Kd2 {[%clk 0:00:11.3]} 32... Nd5 {[%clk
0:01:45.6]} 33. Ne3 {[%clk 0:00:08.3]} 33... Nf4 {[%clk 0:01:37.2]} 34. h4
{[%clk 0:00:07.3]} 34... h5 {[%clk 0:01:34.3]} 35. Kc3 {[%clk 0:00:06.3]} 35...
a6 {[%clk 0:01:20.4]} 36. a4 {[%clk 0:00:06.8]} 36... Ne2+ {[%clk 0:01:13.6]}
37. Kb4 {[%clk 0:00:06.9]} 37... Nd4 {[%clk 0:01:08.3]} 38. axb5 {[%clk
0:00:06.4]} 38... axb5 {[%clk 0:01:08.2]} 39. gxh5 {[%clk 0:00:05.1]} 39... gxh5
{[%clk 0:01:09.1]} 40. Nd1 {[%clk 0:00:03.9]} 40... Nxf3 {[%clk 0:01:03.6]} 41.
Kxb5 {[%clk 0:00:04.8]} 41... Kd4 {[%clk 0:01:04.3]} 42. Nc3 {[%clk 0:00:02.8]}
42... Kd3 {[%clk 0:01:04.1]} 43. Nd5 {[%clk 0:00:03]} 43... Ne5 {[%clk
0:00:57.5]} 44. Nf4+ {[%clk 0:00:03.2]} 44... Kc2 {[%clk 0:00:58.2]} 45. Kb4
{[%clk 0:00:02.6]} 45... Kxb2 {[%clk 0:00:57.7]} 46. Nxh5 {[%clk 0:00:03.3]}
46... c3 {[%clk 0:00:58.3]} 0-1

[Event "Early-Titled-Tuesday-Blitz-March-26-2024"]
[Site "Chess.com"]
[Date "2024.03.26"]
[Round "9"]
[White "Tugrik1969"]
[Black "Matibar"]
[Result "0-1"]
[WhiteElo "2503"]
[BlackElo "2717"]
[TimeControl "180+1"]
[EndTime "9:42:53 PDT"]
[Termination "Matibar won on time"]

1. d4 {[%clk 0:03:00.9]} 1... Nf6 {[%clk 0:02:56.3]} 2. c4 {[%clk 0:03:00.6]}
2... Nc6 {[%clk 0:02:56]} 3. Nf3 {[%clk 0:02:59.7]} 3... e6 {[%clk 0:02:55.2]}
4. g3 {[%clk 0:02:59.4]} 4... d5 {[%clk 0:02:52]} 5. Bg2 {[%clk 0:02:57.1]} 5...
Bb4+ {[%clk 0:02:51.3]} 6. Bd2 {[%clk 0:02:49.8]} 6... Be7 {[%clk 0:02:50.2]} 7.
Qc1 {[%clk 0:02:41.2]} 7... O-O {[%clk 0:02:46.9]} 8. O-O {[%clk 0:02:41]} 8...
Ne4 {[%clk 0:02:45.8]} 9. Bf4 {[%clk 0:02:33.7]} 9... g5 {[%clk 0:02:40.2]} 10.
Be3 {[%clk 0:02:29.2]} 10... f5 {[%clk 0:02:39]} 11. Nc3 {[%clk 0:02:15.9]}
11... g4 {[%clk 0:02:36.1]} 12. Nd2 {[%clk 0:02:11.7]} 12... Bf6 {[%clk
0:02:34]} 13. Ndxe4 {[%clk 0:02:07.6]} 13... dxe4 {[%clk 0:02:33.7]} 14. d5
{[%clk 0:02:02.5]} 14... Ne5 {[%clk 0:02:32.5]} 15. b3 {[%clk 0:01:51.3]} 15...
Ng6 {[%clk 0:02:31.2]} 16. Rd1 {[%clk 0:01:49.4]} 16... e5 {[%clk 0:02:30.8]}
17. Bc5 {[%clk 0:01:41.1]} 17... Rf7 {[%clk 0:02:22.8]} 18. d6 {[%clk
0:01:41.2]} 18... c6 {[%clk 0:02:22.9]} 19. e3 {[%clk 0:01:30.4]} 19... Be6
{[%clk 0:02:22.8]} 20. a4 {[%clk 0:01:28.3]} 20... h6 {[%clk 0:02:22]} 21. a5
{[%clk 0:01:27.9]} 21... h5 {[%clk 0:02:21.9]} 22. Rd2 {[%clk 0:01:02.2]} 22...
h4 {[%clk 0:02:21.3]} 23. Qd1 {[%clk 0:01:01.5]} 23... Nf8 {[%clk 0:02:20.4]}
24. Bb4 {[%clk 0:00:52.4]} 24... Nd7 {[%clk 0:02:20.2]} 25. c5 {[%clk
0:00:50.6]} 25... a6 {[%clk 0:02:17.4]} 26. Na4 {[%clk 0:00:49.7]} 26... Rh7
{[%clk 0:02:13.5]} 27. Nb6 {[%clk 0:00:49.3]} 27... Nxb6 {[%clk 0:02:12.3]} 28.
axb6 {[%clk 0:00:50.2]} 28... Bd7 {[%clk 0:02:06.7]} 29. Bc3 {[%clk 0:00:49.4]}
29... Qf8 {[%clk 0:02:03.7]} 30. Raa2 {[%clk 0:00:49]} 30... Qh6 {[%clk
0:02:02.9]} 31. Qa1 {[%clk 0:00:46.2]} 31... Re8 {[%clk 0:02:01.7]} 32. Kf1
{[%clk 0:00:41.2]} 32... hxg3 {[%clk 0:01:58.1]} 33. hxg3 {[%clk 0:00:40.8]}
33... Qh2 {[%clk 0:01:58.7]} 34. b4 {[%clk 0:00:40.5]} 34... Be6 {[%clk
0:01:56.8]} 35. Rab2 {[%clk 0:00:39.8]} 35... Bc4+ {[%clk 0:01:56.5]} 36. Re2
{[%clk 0:00:38.4]} 36... Qh1+ {[%clk 0:01:44.4]} 37. Bxh1 {[%clk 0:00:37.2]}
37... Rxh1+ {[%clk 0:01:45.3]} 38. Kg2 {[%clk 0:00:36.6]} 38... Rxa1 {[%clk
0:01:46]} 39. Re1 {[%clk 0:00:25.2]} 39... Rxe1 {[%clk 0:01:38.3]} 40. Bxe1
{[%clk 0:00:26.1]} 40... Kf7 {[%clk 0:01:38]} 41. Bc3 {[%clk 0:00:25.9]} 41...
Ke6 {[%clk 0:01:37]} 42. Rb1 {[%clk 0:00:25]} 42... Rh8 {[%clk 0:01:36.4]} 43.
Rh1 {[%clk 0:00:24.5]} 43... Rxh1 {[%clk 0:01:32.6]} 44. Kxh1 {[%clk 0:00:25.4]}
44... Kd5 {[%clk 0:01:18.4]} 45. Kg2 {[%clk 0:00:24.8]} 45... Bd3 {[%clk
0:01:14.8]} 46. Bb2 {[%clk 0:00:22.8]} 46... a5 {[%clk 0:01:04]} 47. bxa5 {[%clk
0:00:19.5]} 47... Kxc5 {[%clk 0:01:03.8]} 48. d7 {[%clk 0:00:16.7]} 48... Kd5
{[%clk 0:01:03.1]} 0-1